fUST/lending_fUST_20250624
["ID","MTS","AMOUNT","RATE_DAILY","PERIOD"]
[367185270,1750695104363,-1000.0,0.00024658,2]
[367185271,1750695104372,-1000.0,0.00024658,2]
[367185272,1750695104381,-1000.0,0.00024658,2]
[367185273,1750695104391,-1000.0,0.00024658,2]
[367185274,1750695104400,-1000.0,0.00024658,2]
[367185275,1750695104410,-1000.0,0.00024658,2]
[367185276,1750695104419,-1000.0,0.00024658,2]
[367185277,1750695104428,-1000.0,0.00024658,2]
[367185278,1750695104437,-1000.0,0.00024658,2]
[367185279,1750695104447,-1000.0,0.00024658,2]
[367185280,1750695104456,-1000.0,0.00024658,2]
[367185281,1750695104465,-1000.0,0.00024658,2]
[367185282,1750695104475,-1000.0,0.00024658,2]
[367185283,1750695104486,-1000.0,0.00024658,2]
[367185284,1750695104495,-1000.0,0.00024658,2]
[367185285,1750695104506,-1000.0,0.00024658,2]
[367185286,1750695104517,-1000.0,0.00024658,2]
[367185287,1750695104538,-1000.0,0.00024658,2]
[367185288,1750695104556,-1000.0,0.00024658,2]
[367185289,1750695104566,-1000.0,0.00024658,2]
[367185290,1750695104575,-1000.0,0.00024658,2]
[367185291,1750695104586,-1000.0,0.00024658,2]
[367185292,1750695104596,-398.0,0.00024658,2]
[367185293,1750695104605,-1000.0,0.00024658,2]
[367185294,1750695104615,-1000.0,0.00024658,2]
[367185295,1750695104624,-1000.0,0.00024658,2]
[367185296,1750695104635,-1000.0,0.00024658,2]
[367185297,1750695104646,-200.0,0.00024658,2]
[367185298,1750695104656,-1000.0,0.00024658,2]
[367185299,1750695104665,-1000.0,0.00024658,2]
[367185300,1750695104675,-380.0,0.00024658,2]
[367185301,1750695104686,-1000.0,0.00024658,2]
[367185302,1750695104696,-581.96,0.00024673,2]
[367185303,1750695104706,-460.0,0.00024673,2]
[367185304,1750695104716,-460.0,0.00024673,2]
[367185305,1750695104726,-572.39,0.00024673,2]
[367185306,1750695104736,-460.0,0.00024673,2]
[367185307,1750695104747,-460.0,0.00024673,2]
[367185308,1750695104757,-1389.87,0.00024673,2]
[367185309,1750695104767,-992.22,0.00024673,2]
[367185310,1750695104777,-460.0,0.00024673,2]
[367185311,1750695104787,-200.0,0.00024673,2]
[367185312,1750695104796,-434.88,0.00024673,4]
[367185313,1750695104806,-460.0,0.00024673,2]
[367185314,1750695104816,-460.0,0.00024673,2]
[367185315,1750695104826,-460.0,0.00024673,2]
[367185316,1750695104835,-827.68,0.00024673,2]
[367185317,1750695104845,-460.0,0.00024673,2]
[367185318,1750695104855,-460.0,0.00024673,2]
[367185319,1750695104865,-752.67,0.00024673,2]
[367185320,1750695104875,-325.87280521,0.00024673,2]
[367185321,1750695104884,-911.77,0.00024673,2]
[367185322,1750695104893,-460.0,0.00024673,2]
[367185323,1750695104902,-534.54,0.00024673,2]
[367185324,1750695104911,-725.0,0.00024673,2]
[367185325,1750695104921,-460.0,0.00024673,2]
[367185326,1750695104930,-1633.04,0.00024673,2]
[367185327,1750695104940,-529.23,0.00024673,2]
[367185328,1750695104949,-460.0,0.00024673,2]
[367185329,1750695104958,-460.0,0.00024673,2]
[367185330,1750695104968,-507.07,0.00024673,2]
[367185331,1750695104978,-608.9,0.00024673,2]
[367185332,1750695104990,-1483.08343318,0.00024679,2]
[367185333,1750695105001,-3000.0,0.00024679,2]
[367185334,1750695105010,-208153.81489688,0.0002468,2]
[367185335,1750695105020,-41846.18510312,0.0002468,2]
[367185336,1750695105030,-213.63163053,0.000247,7]
[367185337,1750695105039,-160.0,0.000247,7]
[367185338,1750695105049,-836.70095952,0.000247,7]
[367185339,1750695105059,-481.68474319,0.00024712,2]
[367185340,1750695105068,-793.19,0.0002472,2]
[367185341,1750695105078,-460.0,0.0002472,2]
[367185342,1750695105088,-460.0,0.0002472,2]
[367185343,1750695105097,-1166.81,0.0002472,2]
[367185344,1750695105108,-2699.37,0.0002472,2]
[367185345,1750695105117,-1049.98,0.0002472,2]
[367185346,1750695105127,-653.64,0.0002472,2]
[367185347,1750695105136,-556.62,0.0002472,2]
[367185348,1750695105146,-607.5,0.0002472,2]
[367185349,1750695105155,-460.0,0.0002472,2]
[367185350,1750695105165,-739.3,0.0002472,2]
[367185351,1750695105178,-460.0,0.0002472,2]
[367185352,1750695105188,-2097.03,0.0002472,2]
[367185353,1750695105199,-2271.15,0.0002472,2]
[367185354,1750695105208,-1150.94,0.0002472,2]
[367185355,1750695105218,-2679.84,0.0002472,2]
[367185356,1750695105230,-16823.56,0.0002472,2]
[367185357,1750695105241,-1221.69,0.00024722,2]
[367185358,1750695105250,-368.15079681,0.00024722,2]
[367185359,1750695105259,-1343.17,0.00024722,2]
[367185360,1750695105268,-648.91,0.00024722,2]
[367185361,1750695105278,-460.0,0.00024722,2]
[367185362,1750695105288,-756.65,0.00024722,2]
[367185363,1750695105297,-3518.29,0.00024722,2]
[367185364,1750695105307,-460.0,0.00024722,2]
[367185365,1750695105316,-460.0,0.00024722,2]
[367185366,1750695105326,-1125.19,0.00024722,2]
[367185367,1750695105336,-722.87,0.00024722,2]
[367185368,1750695105346,-460.0,0.00024722,2]
[367185369,1750695105356,-486.89,0.00024722,2]
[367185370,1750695105365,-460.0,0.00024722,2]
[367185371,1750695105374,-832.81,0.00024722,2]
[367185372,1750695105384,-746.46,0.00024722,2]
[367185373,1750695105394,-460.0,0.00024722,2]
[367185374,1750695105404,-993.68,0.00024722,2]
[367185375,1750695105414,-913.06,0.00024722,2]
[367185376,1750695105423,-663.99,0.00024722,2]
[367185377,1750695105433,-495.38,0.00024722,2]
[367185378,1750695105443,-700.84,0.00024722,2]
[367185379,1750695105452,-1058.12,0.00024722,2]
[367185380,1750695105462,-420.0,0.00024749,2]
[367185381,1750695105472,-119416.26607663,0.00024755,2]
[367185382,1750695105484,-127564.69732501,0.00024755,2]
[367185383,1750695105494,-3727.12892604,0.00024755,2]
[367185384,1750695105504,-12902.86195498,0.00024774,2]
[367185385,1750695105513,-587.0,0.00024794,2]
[367185386,1750695105525,-177.3437282,0.00024795,2]
[367185387,1750695105535,-200.0,0.00024799,2]
[367185388,1750695105544,-58108.59984283,0.000248,2]
[367185389,1750695105742,-1271.63162634,0.000248,2]
[367185394,1750695647649,-150.0,0.0002645,120]
[367185400,1750695936933,1000.0,0.0001911,2]
[367185402,1750696026135,-901.15681376,0.00020342,2]
[367185403,1750696026161,-2385.6764149,0.00020342,2]
[367185404,1750696026186,-300.0,0.00020546,2]
[367185405,1750696026211,-300.0,0.00020546,2]
[367185406,1750696026239,-460.0,0.00020547,2]
[367185407,1750696026264,-825.85,0.00020547,2]
[367185408,1750696026289,-150.0,0.00020547,2]
[367185409,1750696026314,-1200.0,0.00020547,2]
[367185410,1750696026340,-300.0,0.00020547,2]
[367185411,1750696026365,-460.0,0.00020547,2]
[367185412,1750696026389,-549.85296005,0.00020547,2]
[367185413,1750696037105,-231.37703995,0.00020547,2]
[367185414,1750696037127,-699.21,0.00020547,2]
[367185415,1750696037146,-460.0,0.00020547,2]
[367185416,1750696037168,-3809.56,0.00020547,2]
[367185417,1750696037189,-460.0,0.00020547,2]
[367185418,1750696037210,-460.0,0.00020547,2]
[367185419,1750696037230,-643.01,0.00020547,2]
[367185420,1750696037252,-2437.65990315,0.00020548,2]
[367185421,1750696038127,150.0,0.000189,2]
[367185428,1750696115555,150.0,0.000189,2]
[367185429,1750696117688,150.05832723,0.00026456,120]
[367185430,1750696126097,156.50205717,0.00026456,120]
[367185431,1750696127005,164.01603827,0.00026456,120]
[367185532,1750696236078,-300.0,0.00020546,2]
[367185533,1750696236088,-1200.0,0.00020546,2]
[367185534,1750696236098,-616.21,0.00020547,2]
[367185535,1750696236107,-3865.65,0.00020547,2]
[367185536,1750696236117,-1039.7,0.00020547,2]
[367185537,1750696236127,-460.0,0.00020547,2]
[367185538,1750696236139,-460.0,0.00020547,2]
[367185539,1750696236149,-460.0,0.00020547,2]
[367185540,1750696236159,-460.0,0.00020547,2]
[367185541,1750696236168,-791.44,0.00020547,2]
[367185542,1750696236178,-460.0,0.00020547,2]
[367185543,1750696236188,-955.39,0.00020547,2]
[367185544,1750696236197,-460.0,0.00020547,2]
[367185545,1750696236207,-460.0,0.00020547,2]
[367185546,1750696236217,-460.0,0.00020547,2]
[367185547,1750696236226,-460.0,0.00020547,2]
[367185548,1750696236236,-501.72,0.00020547,2]
[367185549,1750696236246,-1607.53,0.00020547,2]
[367185550,1750696236255,-531.14580334,0.00020547,2]
[367185551,1750696236266,-460.0,0.00020547,2]
[367185552,1750696236276,-460.0,0.00020547,2]
[367185553,1750696236286,-670.08,0.00020547,2]
[367185554,1750696236295,-460.0,0.00020547,2]
[367185555,1750696236304,-3568.04,0.00020547,2]
[367185556,1750696236313,-3650.83,0.00020547,2]
[367185557,1750696236323,-723.41,0.00020547,2]
[367185558,1750696236332,-460.0,0.00020547,2]
[367185559,1750696236343,-460.0,0.00020547,2]
[367185560,1750696236352,-685.4,0.00020547,2]
[367185561,1750696236362,-460.0,0.00020547,2]
[367185562,1750696236372,-615.98,0.00020547,2]
[367185563,1750696236384,-369.34752032,0.00020547,2]
[367185564,1750696236402,-1982.47247968,0.00020547,2]
[367185565,1750696236414,-460.0,0.00020547,2]
[367185566,1750696236423,-460.0,0.00020547,2]
[367185567,1750696236433,-1997.07,0.00020547,2]
[367185568,1750696236443,-460.0,0.00020547,2]
[367185569,1750696236452,-666.77,0.00020547,2]
[367185570,1750696236461,-1021.95,0.00020547,2]
[367185571,1750696236471,-330.59102367,0.00020547,2]
[367185572,1750696236480,-460.0,0.00020547,2]
[367185573,1750696236490,-22462.34009685,0.00020548,2]
[367185574,1750696236499,-248.099026,0.0002058,2]
[367185575,1750696236508,-781.23,0.00020821,2]
[367185576,1750696236517,-328.31960802,0.00020821,2]
[367185577,1750696236527,-460.0,0.00020821,2]
[367185578,1750696236537,-616.21,0.00020821,2]
[367185579,1750696236547,-3865.65,0.00020821,2]
[367185580,1750696236557,-1039.7,0.00020821,2]
[367185581,1750696236568,-460.0,0.00020821,2]
[367185582,1750696236579,-460.0,0.00020821,2]
[367185583,1750696236588,-460.0,0.00020821,2]
[367185584,1750696236601,-460.0,0.00020821,2]
[367185585,1750696236611,-791.44,0.00020821,2]
[367185586,1750696236620,-460.0,0.00020821,2]
[367185587,1750696236630,-955.39,0.00020821,2]
[367185588,1750696236643,-460.0,0.00020821,2]
[367185589,1750696236653,-460.0,0.00020821,2]
[367185590,1750696236663,-460.0,0.00020821,2]
[367185591,1750696236673,-501.72,0.00020821,2]
[367185592,1750696236683,-1607.53,0.00020821,2]
[367185593,1750696236692,-327.18070142,0.00020821,2]
[367185594,1750696236701,-670.08,0.00020821,2]
[367185595,1750696236712,-3568.04,0.00020821,2]
[367185596,1750696236721,-3650.83,0.00020821,2]
[367185597,1750696236731,-723.41,0.00020821,2]
[367185598,1750696236742,-155.03931805,0.00020821,2]
[367185599,1750696236752,-685.4,0.00020821,2]
[367185600,1750696236762,-460.0,0.00020821,2]
[367185601,1750696236777,-615.98,0.00020821,2]
[367185602,1750696236787,-2351.82,0.00020821,2]
[367185603,1750696236797,-460.0,0.00020821,2]
[367185604,1750696236808,-1997.07,0.00020821,2]
[367185605,1750696236823,-460.0,0.00020821,2]
[367185606,1750696236832,-666.77,0.00020821,2]
[367185607,1750696236843,-1021.95,0.00020821,2]
[367185608,1750696236853,-460.0,0.00020821,2]
[367185609,1750696236862,-500.0,0.00020821,2]
[367185610,1750696236873,-987.85,0.00021085,10]
[367185611,1750696236882,-781.23,0.00021095,2]
[367185612,1750696236894,-460.0,0.00021095,2]
[367185613,1750696236904,-616.21,0.00021095,2]
[367185614,1750696236913,-3865.65,0.00021095,2]
[367185615,1750696236923,-1039.7,0.00021095,2]
[367185616,1750696236932,-243.66162427,0.00021095,2]
[367185617,1750696236941,-391.38884458,0.00021095,2]
[367185618,1750696236950,-174.99646269,0.00021095,2]
[367185619,1750696236959,-791.44,0.00021095,2]
[367185620,1750696236969,-460.0,0.00021095,2]
[367185621,1750696236978,-955.39,0.00021095,2]
[367185622,1750696236988,-256.58896146,0.00021095,2]
[367185623,1750696236997,-460.0,0.00021095,2]
[367185624,1750696237007,-460.0,0.00021095,2]
[367185625,1750696237016,-501.72,0.00021095,2]
[367185626,1750696237025,-1607.53,0.00021095,2]
[367185627,1750696237035,-670.08,0.00021095,2]
[367185628,1750696237045,-3568.04,0.00021095,2]
[367185629,1750696237055,-3054.7123558,0.00021095,2]
[367185630,1750696237067,-596.1176442,0.00021095,2]
[367185631,1750696237077,-723.41,0.00021095,2]
[367185632,1750696237087,-685.4,0.00021095,2]
[367185633,1750696237096,-87.01159058,0.00021095,2]
[367185634,1750696237108,-68.9552001,0.00021095,2]
[367185635,1750696237118,-615.98,0.00021095,2]
[367185636,1750696237127,-2351.82,0.00021095,2]
[367185637,1750696237138,-460.0,0.00021095,2]
[367185638,1750696237147,-1997.07,0.00021095,2]
[367185639,1750696237157,-460.0,0.00021095,2]
[367185640,1750696237167,-666.77,0.00021095,2]
[367185641,1750696237176,-1021.95,0.00021095,2]
[367185642,1750696237186,-460.0,0.00021095,2]
[367185643,1750696237195,-781.23,0.00021369,2]
[367185644,1750696237205,-460.0,0.00021369,2]
[367185645,1750696237215,-616.21,0.00021369,2]
[367185646,1750696237224,-3865.65,0.00021369,2]
[367185647,1750696237234,-1039.7,0.00021369,2]
[367185648,1750696237243,-791.44,0.00021369,2]
[367185649,1750696237253,-460.0,0.00021369,2]
[367185650,1750696237263,-955.39,0.00021369,2]
[367185651,1750696237272,-460.0,0.00021369,2]
[367185652,1750696237282,-460.0,0.00021369,2]
[367185653,1750696237291,-501.72,0.00021369,2]
[367185654,1750696237302,-1607.53,0.00021369,2]
[367185656,1750696237311,-670.08,0.00021369,2]
[367185657,1750696237321,-3568.04,0.00021369,2]
[367185658,1750696237330,-3650.83,0.00021369,2]
[367185659,1750696237340,-723.41,0.00021369,2]
[367185660,1750696237349,-685.4,0.00021369,2]
[367185661,1750696237359,-615.98,0.00021369,2]
[367185663,1750696237369,-2351.82,0.00021369,2]
[367185664,1750696237379,-460.0,0.00021369,2]
[367185665,1750696237390,-1997.07,0.00021369,2]
[367185666,1750696237400,-460.0,0.00021369,2]
[367185667,1750696237409,-666.77,0.00021369,2]
[367185668,1750696237419,-1021.95,0.00021369,2]
[367185670,1750696237428,-248.39,0.0002147,3]
[367185671,1750696237438,-745.19,0.0002147,3]
[367185672,1750696237447,-460.0,0.00021479,2]
[367185673,1750696237456,-460.0,0.00021479,2]
[367185674,1750696237466,-460.0,0.00021479,2]
[367185675,1750696237475,-680.16,0.00021479,2]
[367185676,1750696237485,-460.0,0.00021479,2]
[367185677,1750696237495,-367.38767853,0.00021479,2]
[367185678,1750696237504,-291.0481126,0.00021479,2]
[367185679,1750696237514,-460.0,0.00021479,2]
[367185680,1750696237524,-460.0,0.00021479,2]
[367185682,1750696237533,-460.0,0.00021479,2]
[367185683,1750696237542,-460.0,0.00021479,2]
[367185684,1750696237552,-460.0,0.00021479,2]
[367185685,1750696237561,-460.0,0.00021479,2]
[367185686,1750696237571,-460.0,0.00021479,2]
[367185687,1750696237580,-296.40200996,0.00021479,2]
[367185688,1750696237593,-163.59799004,0.00021479,2]
[367185689,1750696237602,-804.683149,0.00021479,2]
[367185690,1750696237614,-2861.546851,0.00021479,2]
[367185691,1750696237623,-14.34534954,0.00021479,2]
[367185692,1750696237644,-280.36940009,0.00021479,2]
[367185693,1750696237655,-165.28525037,0.00021479,2]
[367185694,1750696237664,-460.0,0.00021479,2]
[367185695,1750696237675,-379.01474963,0.00021479,2]
[367185696,1750696237697,-259.54525037,0.00021479,2]
[367185697,1750696237709,-460.0,0.00021479,2]
[367185698,1750696237719,-286.55474963,0.00021479,2]
[367185705,1750696238439,-500.0,0.00020547,2]
[367185706,1750696238450,-430.96705706,0.00020547,2]
[367185707,1750696238460,-500.0,0.00020547,2]
[367185708,1750696238469,-218.05684404,0.00020547,2]
[367185709,1750696238479,-500.0,0.00020547,2]
[367185710,1750696238489,-553.91953129,0.00020547,2]
[367185711,1750696238499,-459.44676191,0.00020547,2]
[367185712,1750696238509,-574.88717745,0.00020547,2]
[367185713,1750696238519,-499.89405441,0.00020547,2]
[367185714,1750696238530,-460.0,0.00021369,2]
[367185715,1750696238541,-428.30525037,0.00021479,2]
[367185716,1750696238552,-1139.1,0.00021479,2]
[367185717,1750696238562,-672.27549667,0.00021479,2]
[367185718,1750696238574,-3853.05450333,0.00021479,2]
[367185719,1750696238583,-460.0,0.0002148,2]
[367185720,1750696238593,-460.0,0.0002148,2]
[367185721,1750696238603,-137.05946755,0.0002148,2]
[367185722,1750696238615,-261.88028971,0.0002148,2]
[367185723,1750696238625,-460.0,0.0002148,2]
[367185724,1750696238636,-460.0,0.0002148,2]
[367185725,1750696238646,-460.0,0.0002148,2]
[367185726,1750696238656,-460.0,0.0002148,2]
[367185727,1750696238666,-460.0,0.0002148,2]
[367185728,1750696238677,-460.0,0.0002148,2]
[367185729,1750696238687,-31.28218576,0.0002148,2]
[367185730,1750696238705,-428.71781424,0.0002148,2]
[367185731,1750696238715,-460.0,0.0002148,2]
[367185732,1750696238725,-460.0,0.0002148,2]
[367185733,1750696238735,-460.0,0.0002148,2]
[367185734,1750696238745,-460.0,0.0002148,2]
[367185735,1750696238755,-460.0,0.0002148,2]
[367185736,1750696238766,-460.0,0.0002148,2]
[367185737,1750696238776,-460.0,0.0002148,2]
[367185738,1750696238786,-460.0,0.0002148,2]
[367185739,1750696238795,-460.0,0.0002148,2]
[367185740,1750696238805,-460.0,0.0002148,2]
[367185741,1750696238816,-468.69,0.0002148,2]
[367185742,1750696238826,-1494.23,0.0002148,2]
[367185743,1750696238836,-460.0,0.0002148,2]
[367185744,1750696238846,-729.95,0.0002148,2]
[367185745,1750696238856,-460.0,0.0002148,2]
[367185746,1750696238867,-460.0,0.0002148,2]
[367185747,1750696238877,-460.0,0.0002148,2]
[367185748,1750696238889,-460.0,0.0002148,2]
[367185749,1750696238901,-460.0,0.0002148,2]
[367185750,1750696238913,-460.0,0.0002148,2]
[367185751,1750696238923,-606.39726898,0.0002148,2]
[367185752,1750696238933,-460.0,0.0002148,2]
[367185753,1750696238943,-744.4,0.0002148,2]
[367185754,1750696238952,-227.76062445,0.0002148,2]
[367185755,1750696238962,-460.0,0.0002148,2]
[367185756,1750696238972,-460.0,0.0002148,2]
[367185757,1750696238982,-460.0,0.0002148,2]
[367185758,1750696238992,-460.0,0.0002148,2]
[367185759,1750696239002,-460.0,0.0002148,2]
[367185760,1750696239012,-460.0,0.0002148,2]
[367185761,1750696239022,-460.0,0.0002148,2]
[367185762,1750696239032,-302.77446442,0.0002148,2]
[367185763,1750696239042,-460.0,0.0002148,2]
[367185764,1750696239052,-460.0,0.0002148,2]
[367185765,1750696239062,-460.0,0.0002148,2]
[367185766,1750696239072,-460.0,0.0002148,2]
[367185767,1750696239082,-612.37,0.0002148,2]
[367185768,1750696239093,-460.0,0.0002148,2]
[367185769,1750696239103,-460.0,0.0002148,2]
[367185770,1750696239113,-352.70176802,0.0002148,2]
[367185771,1750696239124,-460.0,0.0002148,2]
[367185772,1750696239136,-460.0,0.0002148,2]
[367185773,1750696239146,-460.0,0.0002148,2]
[367185774,1750696239156,-460.0,0.0002148,2]
[367185775,1750696239165,-460.0,0.0002148,2]
[367185776,1750696239175,-460.0,0.0002148,2]
[367185777,1750696239185,-300.0,0.0002148,2]
[367185778,1750696239197,-460.0,0.0002148,2]
[367185779,1750696239207,-460.0,0.0002148,2]
[367185780,1750696239217,-460.0,0.0002148,2]
[367185781,1750696239227,-460.0,0.0002148,2]
[367185782,1750696239237,-460.0,0.0002148,2]
[367185783,1750696239247,-460.0,0.0002148,2]
[367185784,1750696239257,-460.0,0.0002148,2]
[367185785,1750696239267,-460.0,0.0002148,2]
[367185786,1750696239276,-528.39,0.0002148,2]
[367185787,1750696239286,-460.0,0.0002148,2]
[367185788,1750696239295,-514.60386295,0.0002148,2]
[367185789,1750696239305,-460.0,0.0002148,2]
[367185790,1750696239314,-460.0,0.0002148,2]
[367185791,1750696239323,-190.79176551,0.0002148,2]
[367185792,1750696239333,-520.01,0.0002148,2]
[367185793,1750696239342,-531.56,0.0002148,2]
[367185795,1750696239351,-460.0,0.0002148,2]
[367185796,1750696239360,-460.0,0.0002148,2]
[367185797,1750696239370,-460.0,0.0002148,2]
[367185798,1750696239379,-460.0,0.0002148,2]
[367185799,1750696239391,-646.89,0.0002148,2]
[367185800,1750696239401,-460.0,0.0002148,2]
[367185801,1750696239410,-460.0,0.0002148,2]
[367185802,1750696239419,-190.58428115,0.0002148,2]
[367185803,1750696239429,-460.0,0.0002148,2]
[367185804,1750696239438,-1223.27,0.0002148,2]
[367185805,1750696239448,-460.0,0.0002148,2]
[367185806,1750696239457,-460.0,0.0002148,2]
[367185807,1750696239467,-460.0,0.0002148,2]
[367185808,1750696239477,-460.0,0.0002148,2]
[367185809,1750696239487,-1790.3,0.0002148,2]
[367185810,1750696239497,-320.29184033,0.0002148,2]
[367185811,1750696239507,-460.0,0.0002148,2]
[367185812,1750696239517,-1324.84,0.0002148,2]
[367185813,1750696239527,-460.0,0.0002148,2]
[367185814,1750696239536,-460.0,0.0002148,2]
[367185815,1750696239545,-671.38,0.0002148,2]
[367185816,1750696239555,-9813.74,0.0002148,2]
[367185817,1750696239564,-460.0,0.0002148,2]
[367185819,1750696239574,-1563.24,0.0002148,2]
[367185821,1750696239583,-460.0,0.0002148,2]
[367185823,1750696239593,-358.96505236,0.0002148,2]
[367185825,1750696239602,-424.18166516,0.00021493,2]
[367185826,1750696239612,-207.4,0.00021512,2]
[367185829,1750696239630,-478.71138157,0.00021573,2]
[367185831,1750696239646,-500.0,0.00021573,2]
[367185833,1750696239656,-384.39439689,0.00021573,2]
[367185835,1750696239666,-500.0,0.00021573,2]
[367185837,1750696239676,-500.0,0.00021573,2]
[367185840,1750696239686,-500.0,0.00021573,2]
[367185843,1750696239696,-500.0,0.00021573,2]
[367185845,1750696239707,-500.0,0.00021573,2]
[367185847,1750696239719,-500.0,0.00021573,2]
[367185849,1750696239729,-500.0,0.00021573,2]
[367185851,1750696239739,-500.0,0.00021573,2]
[367185853,1750696239749,-500.0,0.00021579,2]
[367185855,1750696239759,-500.0,0.00021579,2]
[367185857,1750696239769,-507.42661439,0.00021579,2]
[367185859,1750696239779,-507.42661439,0.00021579,2]
[367185861,1750696239789,-500.0,0.00021579,2]
[367185864,1750696239799,-547.12713234,0.00021579,2]
[367185866,1750696239810,-507.42661439,0.00021579,2]
[367185868,1750696239825,-507.42661439,0.00021579,2]
[367185870,1750696239835,-507.42661439,0.00021579,2]
[367185872,1750696239844,-507.42661439,0.00021579,2]
[367185874,1750696239855,-507.42661439,0.00021579,2]
[367185876,1750696239865,-500.0,0.00021579,2]
[367185878,1750696239875,-507.42661439,0.00021579,2]
[367185880,1750696239887,-507.42661439,0.00021579,2]
[367185882,1750696239898,-507.42661439,0.00021579,2]
[367185884,1750696239909,-507.42661439,0.00021579,2]
[367185886,1750696239919,-500.0,0.00021579,2]
[367185888,1750696239930,-507.42661439,0.00021579,2]
[367185890,1750696239940,-507.42661439,0.00021579,2]
[367185892,1750696239951,-644.6363404,0.00021579,2]
[367185894,1750696239960,-507.42661439,0.00021579,2]
[367185896,1750696239971,-507.42661439,0.00021579,2]
[367185898,1750696239981,-507.42661439,0.00021579,2]
[367185900,1750696239992,-507.42661439,0.00021579,2]
[367185902,1750696240002,-460.0,0.0002158,2]
[367185904,1750696240013,-789.83,0.0002158,2]
[367185906,1750696240023,-460.0,0.0002158,2]
[367185908,1750696240032,-460.0,0.0002158,2]
[367185910,1750696240045,-460.0,0.0002158,2]
[367185912,1750696240055,-460.0,0.0002158,2]
[367185914,1750696240065,-460.0,0.0002158,2]
[367185916,1750696240076,-460.0,0.0002158,2]
[367185918,1750696240086,-460.0,0.0002158,2]
[367185922,1750696240095,-460.0,0.0002158,2]
[367185926,1750696240105,-460.0,0.0002158,2]
[367185929,1750696240115,-460.0,0.0002158,2]
[367185932,1750696240127,-746.89,0.0002158,2]
[367185935,1750696240140,-460.0,0.0002158,2]
[367185938,1750696240150,-460.0,0.0002158,2]
[367185941,1750696240160,-460.0,0.0002158,2]
[367185944,1750696240170,-460.0,0.0002158,2]
[367185947,1750696240181,-460.0,0.0002158,2]
[367185950,1750696240191,-741.17,0.0002158,2]
[367185953,1750696240202,-460.0,0.0002158,2]
[367185957,1750696240212,-1234.74,0.0002158,2]
[367185960,1750696240222,-460.0,0.0002158,2]
[367185963,1750696240233,-526.68,0.0002158,2]
[367185966,1750696240242,-460.0,0.0002158,2]
[367185969,1750696240252,-460.0,0.0002158,2]
[367185972,1750696240261,-510.97,0.0002158,2]
[367185975,1750696240271,-460.0,0.0002158,2]
[367185978,1750696240282,-460.0,0.0002158,2]
[367185981,1750696240292,-761.56,0.0002158,2]
[367185985,1750696240303,-946.56,0.0002158,2]
[367185988,1750696240313,-460.0,0.0002158,2]
[367185991,1750696240323,-460.0,0.0002158,2]
[367185994,1750696240332,-460.0,0.0002158,2]
[367185997,1750696240342,-482.88,0.0002158,2]
[367186000,1750696240351,-460.0,0.0002158,2]
[367186003,1750696240362,-460.0,0.0002158,2]
[367186006,1750696240371,-700.65,0.0002158,2]
[367186009,1750696240381,-460.0,0.0002158,2]
[367186011,1750696240393,-587.87,0.0002158,2]